[Event "IMSA Blitz Men 2019"]
[Site "Hengshui"]
[Date "2019.05.17"]
[Round "4.2"]
[White "Rapport, Richard"]
[Black "Korobov, Anton"]
[Result "1/2-1/2"]
[ECO "A01"]
[WhiteElo "2736"]
[BlackElo "2687"]
[Annotator "ChessBase"]
[PlyCount "82"]
[EventDate "2019.05.17"]
[EventType "blitz"]
[EventCountry "CHN"]
[SourceTitle "playchess.com"]
[Source "ChessBase"]
[SourceQuality "1"]
[TimeControl "180+2"]

1. b3 {[%emt 0:00:00]} e5 {[%emt 0:00:05]} 2. Bb2 {[%emt 0:00:00]} Nc6 {[%emt 0:00:01]} 3. c4 {[%emt 0:00:01]} Nf6 {[%emt 0:00:04]} 4. Nf3 {[%emt 0:00:01]} e4 {[%emt 0:00:07]} 5. Nd4 {[%emt 0:00:01]} Bc5 {[%emt 0:00:04]} 6. Nf5 {[%emt 0:00:01]} O-O {[%emt 0:00:03]} 7. e3 {[%emt 0:00:01]} Re8 {[%emt 0:00:13]} 8. Nc3 {[%emt 0:00:02]} d5 {[%emt 0:00:21]} 9. cxd5 {[%emt 0:00:01]} Nb4 {[%emt 0:00:11]} 10. Ng3 {[%emt 0:00:02]} Bg4 {[%emt 0:00:20]} 11. Qc1 {[%emt 0:00:03]} Qe7 {[%emt 0:00:23]} 12. h3 {[%emt 0:00:10]} Bd7 {[%emt 0:00:05]} 13. Bc4 {[%emt 0:00:05]} h5 {[%emt 0:00:10]} 14. a3 {[%emt 0:00:19]} Nd3+ {[%emt 0:00:03]} 15. Bxd3 {[%emt 0:00:01]} exd3 {[%emt 0:00:01]} 16. Qd1 {[%emt 0:00:11]} g6 {[%emt 0:00:21]} 17. Qf3 {[%emt 0:00:09]} Bd6 {[%emt 0:00:07]} 18. Nb5 {[%emt 0:01:25]} Be5 {[%emt 0:00:06]} 19. Bxe5 {[%emt 0:00:03]} Qxe5 {[%emt 0:00:01]} 20. Nc3 {[%emt 0:00:00]} c6 {[%emt 0:00:14]} 21. O-O h4 22. Nh1 cxd5 23. Rac1 {[%emt 0:00:48]} Rac8 {[%emt 0:00:02]} 24. Qd1 {[%emt 0:00:13]} Ne4 {[%emt 0:00:01]} 25. f4 {[%emt 0:00:04]} Qd6 {[%emt 0:00:01]} 26. Nxe4 {[%emt 0:00:01]} dxe4 {[%emt 0:00:01]} 27. b4 {[%emt 0:00:07]} Rxc1 {[%emt 0:00:04]} 28. Qxc1 {[%emt 0:00:00]} Rc8 {[%emt 0:00:00]} 29. Qe1 {[%emt 0:00:00]} Qf6 {[%emt 0:00:08]} 30. Nf2 {[%emt 0:00:01]} Bf5 {[%emt 0:00:01]} 31. Nd1 {[%emt 0:00:01]} Rc2 {[%emt 0:00:02]} 32. Nc3 {[%emt 0:00:02]} a6 {[%emt 0:00:03]} 33. Kh2 {[%emt 0:00:09]} Kg7 {[%emt 0:00:01]} 34. Kg1 {[%emt 0:00:00]} Kg8 35. Kh2 b5 {[%emt 0:00:02]} 36. Kg1 {[%emt 0:00:02]} Kh7 {[%emt 0:00:04]} 37. Nd5 {[%emt 0:00:02]} Qd8 {[%emt 0:00:02]} 38. Nc3 {[%emt 0:00:01]} Kg8 {[%emt 0:00:05]} 39. Kh2 {[%emt 0:00:00]} Qe7 {[%emt 0:00:06]} 40. Kg1 {[%emt 0:00:02]} Qd8 {[%emt 0:00:03]} 41. Kh2 {[%emt 0:00:01]} Qe7 {[%emt 0:00:13]} 1/2-1/2

[Event "IMSA Blitz Men 2019"]
[Site "Hengshui"]
[Date "2019.05.17"]
[Round "4.2"]
[White "Andreikin, Dmitry"]
[Black "Dominguez Perez, Leinier"]
[Result "1-0"]
[ECO "D41"]
[WhiteElo "2722"]
[BlackElo "2750"]
[Annotator "RC"]
[PlyCount "61"]
[EventDate "2019.05.17"]
[EventType "blitz"]
[EventCountry "CHN"]
[SourceTitle "playchess.com"]
[Source "ChessBase"]
[SourceQuality "1"]
[TimeControl "180+2"]

1. d4 {[%emt 0:00:00]} Nf6 {[%emt 0:00:00]} 2. c4 {[%emt 0:00:00]} e6 {[%emt 0:00:00]} 3. Nf3 {[%emt 0:00:01]} d5 {[%emt 0:00:01]} 4. Nc3 {[%emt 0:00:01]} c5 {[%emt 0:00:00]} 5. cxd5 {[%emt 0:00:04]} Nxd5 {[%emt 0:00:02]} 6. e4 {[%emt 0:00:01]} Nxc3 {[%emt 0:00:01]} 7. bxc3 {[%emt 0:00:00]} cxd4 {[%emt 0:00:01]} 8. cxd4 {[%emt 0:00:01]} Bb4+ {[%emt 0:00:01]} 9. Bd2 {[%emt 0:00:01]} Bxd2+ {[%emt 0:00:01]} 10. Qxd2 {[%emt 0:00:01]} O-O {[%emt 0:00:01]} 11. Bc4 {[%emt 0:00:03]} b6 {[%emt 0:00:01]} 12. O-O {[%emt 0:00:04]} Nd7 {[%emt 0:00:14]} 13. Rfe1 {[%emt 0:00:03]} Bb7 {[%emt 0:00:02]} 14. Rad1 {[%emt 0:00:01]} Rc8 {[%emt 0:00:01]} 15. Bb3 {[%emt 0:00:01]} Re8 {[%emt 0:00:00]} 16. h3 {[%emt 0:00:07]} Nf6 {[%emt 0:00:06]} 17. Qf4 {[%emt 0:00:04]} Qc7 {[%emt 0:00:03]} 18. Ne5 {[%emt 0:00:03]} Re7 {[%emt 0:00:02]} 19. Qh4 {[%emt 0:00:10]} Ree8 {[%emt 0:00:34]} 20. Re3 {[%emt 0:00:13]} Qe7 {[%emt 0:00:10]} 21. d5 {[%emt 0:00:25]} Nxd5 {[%emt 0:00:19]} 22. Qxe7 {[%emt 0:00:01]} Nxe7 {[%emt 0:00:02]} 23. Rd7 {[%emt 0:00:02]} Ba8 {[%emt 0:00:33]} 24. Rf3 {[%emt 0:00:18]} Nc6 {[%emt 0:00:38]} 25. Nxf7 {[%emt 0:00:19]} Na5 {[%emt 0:00:27]} 26. Ng5 {[%emt 0:00:02]} h6 {[%emt 0:00:14]} 27. Bxe6+ {[%emt 0:00:13]} Kh8 {[%emt 0:00:00]} 28. Nf7+ {[%emt 0:00:05]} Kh7 {[%emt 0:00:01]} 29. Bf5+ {[%emt 0:00:12]} Kg8 {[%emt 0:00:00]} 30. Rg3 {[%emt 0:00:12]} Kf8 {[%emt 0:00:22]} 31. Nd6 {[%emt 0:00:03]} 1-0

[Event "IMSA Blitz Men 2019"]
[Site "Hengshui"]
[Date "2019.05.17"]
[Round "4.2"]
[White "Mamedov, Rauf"]
[Black "Cheparinov, Ivan"]
[Result "1/2-1/2"]
[ECO "B15"]
[WhiteElo "2650"]
[BlackElo "2667"]
[Annotator "RC"]
[PlyCount "72"]
[EventDate "2019.05.17"]
[EventType "blitz"]
[EventCountry "CHN"]
[SourceTitle "playchess.com"]
[Source "ChessBase"]
[SourceQuality "1"]
[TimeControl "180+2"]

1. e4 {[%emt 0:00:00]} c6 {[%emt 0:00:00]} 2. d4 {[%emt 0:00:03]} d5 {[%emt 0:00:00]} 3. Nd2 {[%emt 0:00:01]} dxe4 {[%emt 0:00:01]} 4. Nxe4 {[%emt 0:00:01]} Nf6 {[%emt 0:00:01]} 5. Nxf6+ {[%emt 0:00:01]} exf6 {[%emt 0:00:01]} 6. c3 {[%emt 0:00:01]} Bd6 {[%emt 0:00:01]} 7. Bd3 {[%emt 0:00:01]} O-O {[%emt 0:00:03]} 8. Qc2 {[%emt 0:00:01]} Re8+ {[%emt 0:00:01]} 9. Ne2 {[%emt 0:00:01]} h5 {[%emt 0:00:01]} 10. Be3 {[%emt 0:00:12]} Nd7 {[%emt 0:00:04]} 11. Ng3 {[%emt 0:00:01]} Bf4 {[%emt 0:00:49]} 12. O-O-O {[%emt 0:00:12]} Bxe3+ {[%emt 0:00:10]} 13. fxe3 {[%emt 0:00:01]} Rxe3 {[%emt 0:00:01]} 14. Rde1 {[%emt 0:00:30]} Rxe1+ {[%emt 0:00:02]} 15. Rxe1 {[%emt 0:00:00]} Nf8 {[%emt 0:00:03]} 16. Nxh5 {[%emt 0:00:12]} Bg4 {[%emt 0:00:02]} 17. Nf4 {[%emt 0:00:27]} Qd6 {[%emt 0:00:04]} 18. g3 {[%emt 0:00:01]} Ne6 {[%emt 0:00:06]} 19. Ng2 {[%emt 0:00:01]} Nc7 {[%emt 0:00:10]} 20. Ne3 {[%emt 0:00:03]} Bd7 {[%emt 0:00:01]} 21. Nc4 {[%emt 0:00:27]} Qf8 {[%emt 0:00:04]} 22. Bf5 {[%emt 0:00:02]} Re8 {[%emt 0:00:15]} 23. Rxe8 {[%emt 0:00:03]} Qxe8 {[%emt 0:00:01]} 24. Bxd7 {[%emt 0:00:01]} Qxd7 {[%emt 0:00:02]} 25. Qe2 {[%emt 0:00:05]} Nd5 {[%emt 0:00:04]} 26. a3 {[%emt 0:00:04]} g6 {[%emt 0:00:01]} 27. Na5 {[%emt 0:00:06]} Kg7 {[%emt 0:00:04]} 28. Nb3 {[%emt 0:00:01]} b6 {[%emt 0:00:05]} 29. Nd2 {[%emt 0:00:01]} Qf5 {[%emt 0:00:04]} 30. Qf3 {[%emt 0:00:14]} Qe6 {[%emt 0:00:04]} 31. Qe4 {[%emt 0:00:11]} Qd7 {[%emt 0:00:00]} 32. Qe2 {[%emt 0:00:15]} Qf5 {[%emt 0:00:04]} 33. Qf3 {[%emt 0:00:01]} Qe6 {[%emt 0:00:01]} 34. Qe4 {[%emt 0:00:05]} Qd7 {[%emt 0:00:01]} 35. Qe2 {[%emt 0:00:07]} Qf5 {[%emt 0:00:02]} 36. Qf3 {[%emt 0:00:10]} Qe6 {[%emt 0:00:01]} 1/2-1/2

[Event "IMSA Blitz Men 2019"]
[Site "Hengshui"]
[Date "2019.05.17"]
[Round "5.1"]
[White "Andreikin, Dmitry"]
[Black "Yu, Yangyi"]
[Result "1/2-1/2"]
[ECO "D56"]
[WhiteElo "2722"]
[BlackElo "2739"]
[Annotator "ChessBase"]
[PlyCount "113"]
[EventDate "2019.05.17"]
[EventType "blitz"]
[EventCountry "CHN"]
[SourceTitle "playchess.com"]
[Source "ChessBase"]
[SourceQuality "1"]
[TimeControl "180+2"]

1. d4 {[%emt 0:00:00]} Nf6 {[%emt 0:00:00]} 2. c4 {[%emt 0:00:00]} e6 {[%emt 0:00:00]} 3. Nf3 {[%emt 0:00:01]} d5 {[%emt 0:00:00]} 4. Nc3 {[%emt 0:00:02]} Be7 {[%emt 0:00:01]} 5. Bg5 {[%emt 0:00:08]} h6 {[%emt 0:00:04]} 6. Bh4 {[%emt 0:00:02]} O-O {[%emt 0:00:03]} 7. e3 {[%emt 0:00:01]} Nbd7 {[%emt 0:00:03]} 8. Be2 {[%emt 0:00:11]} c5 {[%emt 0:00:18]} 9. cxd5 {[%emt 0:00:06]} Nxd5 {[%emt 0:00:03]} 10. Bxe7 {[%emt 0:00:02]} Nxe7 {[%emt 0:00:02]} 11. O-O {[%emt 0:00:02]} cxd4 {[%emt 0:00:14]} 12. Qxd4 {[%emt 0:00:02]} Nf6 {[%emt 0:00:01]} 13. Rfd1 {[%emt 0:00:04]} Qxd4 {[%emt 0:00:06]} 14. Nxd4 {[%emt 0:00:02]} Bd7 {[%emt 0:00:02]} 15. Bf3 {[%emt 0:00:05]} Rab8 {[%emt 0:00:08]} 16. Ndb5 {[%emt 0:00:02]} a6 {[%emt 0:00:14]} 17. Nd6 {[%emt 0:00:02]} Bc6 {[%emt 0:00:01]} 18. Bxc6 {[%emt 0:00:20]} Nxc6 {[%emt 0:00:00]} 19. Na4 {[%emt 0:00:08]} Ne8 {[%emt 0:00:32]} 20. Ne4 {[%emt 0:00:18]} Nf6 {[%emt 0:00:03]} 21. Nxf6+ {[%emt 0:00:05]} gxf6 {[%emt 0:00:06]} 22. Nc5 {[%emt 0:00:01]} Ne5 {[%emt 0:00:17]} 23. f4 {[%emt 0:00:29]} Rbc8 {[%emt 0:00:06]} 24. Nxe6 {[%emt 0:00:31]} fxe6 {[%emt 0:00:09]} 25. fxe5 {[%emt 0:00:01]} Rc2 {[%emt 0:00:01]} 26. Rd6 {[%emt 0:00:14]} fxe5 {[%emt 0:00:15]} 27. Rf1 {[%emt 0:00:04]} Rxf1+ {[%emt 0:00:22]} 28. Kxf1 {[%emt 0:00:00]} Rxb2 {[%emt 0:00:01]} 29. Rxe6 {[%emt 0:00:02]} Rxa2 30. Rb6 {[%emt 0:00:10]} a5 {[%emt 0:00:24]} 31. Rxb7 {[%emt 0:00:01]} a4 {[%emt 0:00:01]} 32. Ra7 {[%emt 0:00:07]} a3 {[%emt 0:00:02]} 33. h4 {[%emt 0:00:10]} h5 {[%emt 0:00:14]} 34. Kg1 {[%emt 0:00:02]} e4 {[%emt 0:00:12]} 35. Kh2 {[%emt 0:00:03]} Ra1 {[%emt 0:00:02]} 36. Kg3 {[%emt 0:00:21]} a2 {[%emt 0:00:01]} 37. Kf2 {[%emt 0:00:08]} Kf8 {[%emt 0:00:00]} 38. Ra6 {[%emt 0:00:05]} Kf7 {[%emt 0:00:01]} 39. Ra7+ {[%emt 0:00:02]} Ke6 {[%emt 0:00:01]} 40. Ra5 {[%emt 0:00:01]} Kd6 {[%emt 0:00:01]} 41. Ra4 {[%emt 0:00:01]} Kc5 {[%emt 0:00:01]} 42. Ra5+ {[%emt 0:00:01]} Kb4 {[%emt 0:00:01]} 43. Ra8 {[%emt 0:00:02]} Kb3 {[%emt 0:00:00]} 44. Rb8+ {[%emt 0:00:01]} Kc4 {[%emt 0:00:01]} 45. Ra8 {[%emt 0:00:01]} Kb3 {[%emt 0:00:01]} 46. Rb8+ {[%emt 0:00:02]} Kc4 {[%emt 0:00:00]} 47. Ra8 {[%emt 0:00:01]} Kd5 {[%emt 0:00:01]} 48. Ra5+ {[%emt 0:00:02]} Ke6 {[%emt 0:00:01]} 49. Kg3 {[%emt 0:00:05]} Kf6 {[%emt 0:00:06]} 50. Kf2 {[%emt 0:00:02]} Ke6 {[%emt 0:00:00]} 51. Kg3 {[%emt 0:00:02]} Kd6 {[%emt 0:00:01]} 52. Kf2 Kc6 53. Ra8 {[%emt 0:00:05]} Kd5 {[%emt 0:00:01]} 54. Ra4 {[%emt 0:00:02]} Kc6 {[%emt 0:00:02]} 55. Ra8 {[%emt 0:00:02]} Kd5 {[%emt 0:00:01]} 56. Ra4 {[%emt 0:00:01]} Kc6 {[%emt 0:00:00]} 57. Ra8 {[%emt 0:00:01]} 1/2-1/2

[Event "IMSA Blitz Men 2019"]
[Site "Hengshui"]
[Date "2019.05.17"]
[Round "5.1"]
[White "Fedoseev, Vladimir"]
[Black "Le, Quang Liem"]
[Result "1-0"]
[ECO "A45"]
[WhiteElo "2683"]
[BlackElo "2704"]
[Annotator "RC"]
[PlyCount "72"]
[EventDate "2019.05.17"]
[EventType "blitz"]
[EventCountry "CHN"]
[SourceTitle "playchess.com"]
[Source "ChessBase"]
[SourceQuality "1"]
[TimeControl "180+2"]

1. d4 {[%emt 0:00:00]} Nf6 {[%emt 0:00:00]} 2. Bg5 {[%emt 0:00:01]} d5 {[%emt 0:00:02]} 3. Nd2 {[%emt 0:00:02]} c5 {[%emt 0:00:06]} 4. dxc5 {[%emt 0:00:06]} e6 {[%emt 0:00:13]} 5. e4 {[%emt 0:00:05]} Bxc5 {[%emt 0:00:18]} 6. e5 {[%emt 0:00:04]} Qb6 {[%emt 0:00:06]} 7. exf6 {[%emt 0:00:52]} Bxf2+ {[%emt 0:00:02]} 8. Ke2 {[%emt 0:00:01]} Bxg1 {[%emt 0:00:17]} 9. fxg7 {[%emt 0:00:10]} Qf2+ {[%emt 0:00:03]} 10. Kd3 {[%emt 0:00:03]} Qd4+ {[%emt 0:00:05]} 11. Ke2 {[%emt 0:00:01]} Qxg7 {[%emt 0:00:02]} 12. Rxg1 {[%emt 0:00:28]} Qxg5 {[%emt 0:00:03]} 13. Nf3 {[%emt 0:00:00]} Qf6 {[%emt 0:00:06]} 14. c3 {[%emt 0:00:02]} Nc6 {[%emt 0:00:04]} 15. Qb3 {[%emt 0:00:08]} O-O {[%emt 0:00:12]} 16. Re1 {[%emt 0:00:17]} Rd8 {[%emt 0:00:04]} 17. Kd2 {[%emt 0:00:21]} e5 {[%emt 0:00:07]} 18. Bb5 {[%emt 0:00:05]} Qf4+ {[%emt 0:00:09]} 19. Kd1 {[%emt 0:00:08]} Bg4 {[%emt 0:00:05]} 20. h3 {[%emt 0:00:02]} Bh5 {[%emt 0:00:03]} 21. Ref1 {[%emt 0:00:23]} d4 {[%emt 0:00:12]} 22. c4 {[%emt 0:00:01]} Bg6 {[%emt 0:00:26]} 23. Nd2 {[%emt 0:00:01]} Qg5 {[%emt 0:00:11]} 24. Bxc6 {[%emt 0:00:07]} bxc6 {[%emt 0:00:01]} 25. Qf3 {[%emt 0:00:02]} Rab8 {[%emt 0:00:07]} 26. b3 {[%emt 0:00:00]} f5 {[%emt 0:00:16]} 27. Qxc6 {[%emt 0:00:02]} e4 {[%emt 0:00:16]} 28. g4 {[%emt 0:00:01]} Rbc8 {[%emt 0:00:11]} 29. Qe6+ {[%emt 0:00:02]} Kh8 {[%emt 0:00:05]} 30. Qe5+ {[%emt 0:00:01]} Kg8 {[%emt 0:00:02]} 31. gxf5 {[%emt 0:00:03]} Qh5+ {[%emt 0:00:03]} 32. Kc1 {[%emt 0:00:01]} e3 {[%emt 0:00:00]} 33. Ne4 {[%emt 0:00:02]} Qe2 {[%emt 0:00:04]} 34. fxg6 {[%emt 0:00:06]} Rxc4+ {[%emt 0:00:01]} 35. bxc4 {[%emt 0:00:09]} Qxc4+ {[%emt 0:00:01]} 36. Kb1 {[%emt 0:00:01]} Rc8 1-0

[Event "IMSA Blitz Men 2019"]
[Site "Hengshui"]
[Date "2019.05.17"]
[Round "5.2"]
[White "Dominguez Perez, Leinier"]
[Black "Vidit, Santosh Gujrathi"]
[Result "0-1"]
[ECO "C54"]
[WhiteElo "2750"]
[BlackElo "2707"]
[Annotator "RC"]
[PlyCount "88"]
[EventDate "2019.05.17"]
[EventType "blitz"]
[EventCountry "CHN"]
[SourceTitle "playchess.com"]
[Source "ChessBase"]
[SourceQuality "1"]
[TimeControl "180+2"]

1. e4 {[%emt 0:00:00]} e5 {[%emt 0:00:00]} 2. Nf3 {[%emt 0:00:00]} Nc6 {[%emt 0:00:00]} 3. Bc4 {[%emt 0:00:01]} Bc5 {[%emt 0:00:00]} 4. c3 {[%emt 0:00:00]} Nf6 {[%emt 0:00:01]} 5. d3 {[%emt 0:00:01]} O-O {[%emt 0:00:02]} 6. Nbd2 {[%emt 0:00:01]} d6 {[%emt 0:00:01]} 7. O-O {[%emt 0:00:02]} a5 {[%emt 0:00:02]} 8. h3 {[%emt 0:00:02]} h6 {[%emt 0:00:01]} 9. Re1 {[%emt 0:00:01]} Be6 {[%emt 0:00:01]} 10. Bb5 {[%emt 0:00:01]} Qb8 {[%emt 0:00:01]} 11. Nf1 {[%emt 0:00:01]} Qa7 {[%emt 0:00:00]} 12. Qd2 {[%emt 0:00:01]} a4 {[%emt 0:00:16]} 13. Ng3 {[%emt 0:00:01]} Qa5 {[%emt 0:00:13]} 14. Bxc6 {[%emt 0:00:01]} bxc6 {[%emt 0:00:03]} 15. Nh4 {[%emt 0:00:02]} Kh7 {[%emt 0:00:07]} 16. Nhf5 {[%emt 0:00:00]} Ng8 {[%emt 0:00:01]} 17. Nh5 {[%emt 0:00:01]} Bxf5 {[%emt 0:00:10]} 18. exf5 {[%emt 0:00:01]} f6 {[%emt 0:00:10]} 19. Qe2 {[%emt 0:00:00]} Rf7 {[%emt 0:00:08]} 20. Qf3 {[%emt 0:00:39]} Qb5 {[%emt 0:00:15]} 21. Re4 {[%emt 0:00:10]} Ne7 {[%emt 0:00:13]} 22. Rh4 {[%emt 0:00:04]} Rh8 {[%emt 0:00:15]} 23. Rb1 {[%emt 0:00:51]} Ba7 {[%emt 0:00:05]} 24. Ng3 {[%emt 0:00:35]} d5 {[%emt 0:00:41]} 25. Bd2 {[%emt 0:00:04]} c5 {[%emt 0:00:11]} 26. c4 {[%emt 0:00:18]} Qd7 {[%emt 0:00:04]} 27. Be3 {[%emt 0:00:09]} c6 {[%emt 0:00:03]} 28. b3 {[%emt 0:00:03]} axb3 {[%emt 0:00:09]} 29. Rxb3 {[%emt 0:00:02]} Rff8 {[%emt 0:00:17]} 30. Qh5 {[%emt 0:00:15]} Kg8 {[%emt 0:00:04]} 31. Rg4 {[%emt 0:00:03]} Rf7 {[%emt 0:00:12]} 32. a4 {[%emt 0:00:02]} dxc4 {[%emt 0:00:02]} 33. Rb1 {[%emt 0:00:17]} cxd3 {[%emt 0:00:03]} 34. Bd2 {[%emt 0:00:03]} Nd5 {[%emt 0:00:04]} 35. a5 {[%emt 0:00:05]} Nf4 {[%emt 0:00:03]} 36. Bxf4 {[%emt 0:00:04]} exf4 {[%emt 0:00:01]} 37. Rxf4 {[%emt 0:00:01]} Re7 {[%emt 0:00:02]} 38. Re4 {[%emt 0:00:05]} c4 {[%emt 0:00:04]} 39. Rxe7 {[%emt 0:00:07]} Qxe7 {[%emt 0:00:01]} 40. a6 {[%emt 0:00:01]} c3 {[%emt 0:00:07]} 41. Rb7 {[%emt 0:00:00]} Qf8 {[%emt 0:00:04]} 42. Qd1 {[%emt 0:00:06]} c2 {[%emt 0:00:01]} 43. Qd2 {[%emt 0:00:02]} Qc5 {[%emt 0:00:03]} 44. Ne2 Qxf2+ 0-1

[Event "IMSA Blitz Men 2019"]
[Site "Hengshui"]
[Date "2019.05.17"]
[Round "5.2"]
[White "Le, Quang Liem"]
[Black "Fedoseev, Vladimir"]
[Result "1/2-1/2"]
[ECO "A05"]
[WhiteElo "2704"]
[BlackElo "2683"]
[Annotator "RC"]
[PlyCount "217"]
[EventDate "2019.05.17"]
[EventType "blitz"]
[EventCountry "CHN"]
[SourceTitle "playchess.com"]
[Source "ChessBase"]
[SourceQuality "1"]
[TimeControl "180+2"]

1. Nf3 {[%emt 0:00:00]} Nf6 {[%emt 0:00:00]} 2. c4 {[%emt 0:00:00]} e6 {[%emt 0:00:00]} 3. b3 {[%emt 0:00:02]} b6 {[%emt 0:00:01]} 4. g3 {[%emt 0:00:03]} Bb7 {[%emt 0:00:01]} 5. Bg2 {[%emt 0:00:01]} Be7 {[%emt 0:00:01]} 6. Bb2 {[%emt 0:00:01]} O-O {[%emt 0:00:02]} 7. O-O {[%emt 0:00:01]} Na6 {[%emt 0:00:17]} 8. d4 {[%emt 0:00:04]} d5 {[%emt 0:00:11]} 9. Ne5 {[%emt 0:00:15]} Nd7 {[%emt 0:00:17]} 10. cxd5 {[%emt 0:00:20]} exd5 {[%emt 0:00:12]} 11. Nc3 {[%emt 0:00:10]} Nxe5 {[%emt 0:00:05]} 12. dxe5 {[%emt 0:00:02]} c6 {[%emt 0:00:01]} 13. Qc2 {[%emt 0:00:34]} Qc7 {[%emt 0:00:23]} 14. Rad1 {[%emt 0:00:02]} Rad8 {[%emt 0:00:06]} 15. a3 {[%emt 0:00:19]} d4 {[%emt 0:00:08]} 16. Nb5 {[%emt 0:00:06]} cxb5 {[%emt 0:00:10]} 17. Qxc7 {[%emt 0:00:01]} Nxc7 {[%emt 0:00:06]} 18. Bxb7 {[%emt 0:00:01]} Ne6 {[%emt 0:00:02]} 19. Be4 {[%emt 0:00:15]} b4 {[%emt 0:00:03]} 20. a4 {[%emt 0:00:05]} Bc5 {[%emt 0:00:36]} 21. Bd3 {[%emt 0:00:06]} Nc7 {[%emt 0:00:06]} 22. Bc4 {[%emt 0:00:08]} Rfe8 {[%emt 0:00:04]} 23. Rd2 {[%emt 0:00:15]} a6 {[%emt 0:00:27]} 24. Kg2 {[%emt 0:00:01]} b5 {[%emt 0:00:07]} 25. axb5 {[%emt 0:00:01]} axb5 {[%emt 0:00:00]} 26. Bd3 {[%emt 0:00:01]} Rxe5 {[%emt 0:00:01]} 27. Rc1 {[%emt 0:00:02]} Bb6 {[%emt 0:00:06]} 28. Rc6 {[%emt 0:00:06]} Re6 {[%emt 0:00:03]} 29. Rdc2 {[%emt 0:00:02]} Nd5 {[%emt 0:00:09]} 30. Rxe6 {[%emt 0:00:01]} fxe6 {[%emt 0:00:01]} 31. Rc6 {[%emt 0:00:00]} Kf7 {[%emt 0:00:03]} 32. Bxb5 {[%emt 0:00:01]} Ke7 {[%emt 0:00:01]} 33. Bc4 {[%emt 0:00:04]} Rd6 {[%emt 0:00:02]} 34. Bxd5 {[%emt 0:00:01]} exd5 {[%emt 0:00:01]} 35. Rxd6 {[%emt 0:00:11]} Kxd6 {[%emt 0:00:01]} 36. Kf1 {[%emt 0:00:01]} g5 {[%emt 0:00:05]} 37. Ke1 {[%emt 0:00:05]} g4 {[%emt 0:00:06]} 38. Kd2 {[%emt 0:00:01]} d3 {[%emt 0:00:06]} 39. e3 {[%emt 0:00:01]} Ke6 {[%emt 0:00:03]} 40. Kxd3 {[%emt 0:00:01]} Bc7 {[%emt 0:00:01]} 41. Bd4 {[%emt 0:00:05]} Bd6 {[%emt 0:00:01]} 42. e4 {[%emt 0:00:00]} h5 {[%emt 0:00:02]} 43. Ke3 {[%emt 0:00:02]} Bf8 {[%emt 0:00:01]} 44. f4 {[%emt 0:00:03]} gxf3 {[%emt 0:00:03]} 45. Kxf3 {[%emt 0:00:01]} Bd6 {[%emt 0:00:02]} 46. Be3 {[%emt 0:00:05]} Be7 {[%emt 0:00:02]} 47. h3 {[%emt 0:00:03]} Ke5 {[%emt 0:00:00]} 48. exd5 {[%emt 0:00:09]} Kxd5 {[%emt 0:00:01]} 49. Bf2 {[%emt 0:00:07]} Ke5 {[%emt 0:00:03]} 50. Ke3 {[%emt 0:00:02]} Bc5+ {[%emt 0:00:05]} 51. Kf3 {[%emt 0:00:01]} Be7 {[%emt 0:00:00]} 52. Ba7 {[%emt 0:00:07]} Bf8 {[%emt 0:00:03]} 53. Ke3 {[%emt 0:00:02]} Bd6 {[%emt 0:00:03]} 54. Kd3 {[%emt 0:00:03]} Kd5 {[%emt 0:00:01]} 55. g4 {[%emt 0:00:03]} hxg4 {[%emt 0:00:02]} 56. hxg4 {[%emt 0:00:00]} Be7 {[%emt 0:00:02]} 57. Be3 {[%emt 0:00:03]} Bd6 {[%emt 0:00:00]} 58. Bd4 {[%emt 0:00:07]} Be7 {[%emt 0:00:02]} 59. Bg7 {[%emt 0:00:01]} Bd6 {[%emt 0:00:06]} 60. g5 {[%emt 0:00:03]} Ke6 {[%emt 0:00:02]} 61. Ke4 {[%emt 0:00:00]} Be7 {[%emt 0:00:01]} 62. g6 {[%emt 0:00:03]} Bd6 {[%emt 0:00:01]} 63. Bd4 {[%emt 0:00:01]} Be7 {[%emt 0:00:02]} 64. g7 {[%emt 0:00:03]} Kf7 {[%emt 0:00:00]} 65. Kd5 {[%emt 0:00:01]} Bg5 {[%emt 0:00:02]} 66. Kd6 {[%emt 0:00:07]} Bd2 {[%emt 0:00:02]} 67. Kc5 {[%emt 0:00:02]} Bc3 {[%emt 0:00:04]} 68. Kc4 {[%emt 0:00:02]} Be1 {[%emt 0:00:01]} 69. Kd3 {[%emt 0:00:08]} Bg3 {[%emt 0:00:02]} 70. Ke4 {[%emt 0:00:02]} Be1 {[%emt 0:00:01]} 71. Be5 {[%emt 0:00:04]} Bd2 {[%emt 0:00:03]} 72. Kd3 {[%emt 0:00:04]} Be1 {[%emt 0:00:01]} 73. Kc4 {[%emt 0:00:01]} Bd2 {[%emt 0:00:02]} 74. Bd6 {[%emt 0:00:05]} Kxg7 {[%emt 0:00:01]} 75. Bxb4 {[%emt 0:00:01]} Bf4 {[%emt 0:00:01]} 76. Bc5 {[%emt 0:00:07]} Kf7 {[%emt 0:00:02]} 77. Kd5 {[%emt 0:00:00]} Ke8 {[%emt 0:00:03]} 78. Kc6 {[%emt 0:00:01]} Kd8 {[%emt 0:00:00]} 79. b4 {[%emt 0:00:01]} Kc8 {[%emt 0:00:03]} 80. Bd6 {[%emt 0:00:03]} Bd2 {[%emt 0:00:03]} 81. b5 {[%emt 0:00:01]} Ba5 {[%emt 0:00:01]} 82. Be5 {[%emt 0:00:01]} Bd8 {[%emt 0:00:02]} 83. Bf4 {[%emt 0:00:02]} Ba5 {[%emt 0:00:01]} 84. Bg3 {[%emt 0:00:04]} Bd8 {[%emt 0:00:01]} 85. Bf2 {[%emt 0:00:02]} Bc7 {[%emt 0:00:01]} 86. Ba7 {[%emt 0:00:02]} Bd8 {[%emt 0:00:03]} 87. Bb6 {[%emt 0:00:01]} Bf6 {[%emt 0:00:02]} 88. Bc7 {[%emt 0:00:01]} Bd4 {[%emt 0:00:02]} 89. Bd6 {[%emt 0:00:01]} Be3 {[%emt 0:00:03]} 90. Bc7 {[%emt 0:00:02]} Bd4 {[%emt 0:00:04]} 91. Bb6 {[%emt 0:00:03]} Bf6 {[%emt 0:00:04]} 92. Ba7 {[%emt 0:00:04]} Bd8 {[%emt 0:00:01]} 93. Bd4 {[%emt 0:00:04]} Bc7 {[%emt 0:00:02]} 94. Bb6 {[%emt 0:00:02]} Be5 {[%emt 0:00:03]} 95. Ba5 {[%emt 0:00:01]} Bd4 {[%emt 0:00:01]} 96. Bc7 {[%emt 0:00:01]} Be3 {[%emt 0:00:02]} 97. Bd6 {[%emt 0:00:02]} Bd4 {[%emt 0:00:04]} 98. Bf4 {[%emt 0:00:03]} Bf2 {[%emt 0:00:02]} 99. Bc7 {[%emt 0:00:03]} Be3 {[%emt 0:00:03]} 100. Bb6 {[%emt 0:00:02]} Bg5 {[%emt 0:00:01]} 101. Bd4 {[%emt 0:00:02]} Bd8 {[%emt 0:00:02]} 102. Bc3 {[%emt 0:00:03]} Bc7 {[%emt 0:00:02]} 103. Bf6 {[%emt 0:00:01]} Ba5 {[%emt 0:00:01]} 104. Be7 {[%emt 0:00:01]} Bc7 {[%emt 0:00:03]} 105. Bc5 {[%emt 0:00:02]} Bd8 {[%emt 0:00:02]} 106. Bb6 {[%emt 0:00:03]} Bf6 {[%emt 0:00:03]} 107. Ba7 {[%emt 0:00:02]} Bd8 {[%emt 0:00:02]} 108. b6 {[%emt 0:00:01]} Bxb6 {[%emt 0:00:00]} 109. Bxb6 1/2-1/2